fUSD/lending_fUSD_20240210
["ID","MTS","AMOUNT","RATE_DAILY","PERIOD"]
[313673349,1707570644055,-500.0,0.00022543,2]
[313673350,1707570644065,-4652.48018757,0.00022543,2]
[313673351,1707570644090,-861.16236143,0.00022543,2]
[313673352,1707570644102,-687.42428315,0.00022543,2]
[313673353,1707570644115,-516.68256542,0.00022543,2]
[313673354,1707570644128,-3424.65060243,0.00022543,2]
[313673355,1707570644138,-500.0,0.00022543,2]
[313673356,1707570644147,-2939.42044611,0.00022543,2]
[313673357,1707570644161,-269.44955389,0.00022543,2]
[313673358,1707570644172,-500.0,0.00022543,2]
[313673359,1707570644182,-500.0,0.00022543,2]
[313673360,1707570644192,-500.0,0.00022543,2]
[313673361,1707570644202,-535.46042234,0.00022543,2]
[313673362,1707570644212,-500.0,0.00022543,2]
[313673363,1707570644222,-500.0,0.00022543,2]
[313673364,1707570644233,-2456.6,0.00022543,2]
[313673365,1707570644243,-500.0,0.00022543,2]
[313673366,1707570644253,-500.0,0.00022543,2]
[313673367,1707570644263,-1773.43,0.00022543,2]
[313673368,1707570644273,-1089.62,0.00022543,2]
[313673369,1707570644283,-972.82,0.00022543,2]
[313673370,1707570644294,-258.14339674,0.00022543,2]
[313673371,1707570644304,-522.14497934,0.00022543,2]
[313673372,1707570644314,-500.0,0.00022543,2]
[313673373,1707570644324,-839.19,0.00022543,2]
[313673374,1707570644337,-528.71,0.00022543,2]
[313673375,1707570644347,-500.0,0.00022543,2]
[313673376,1707570644357,-500.0,0.00022543,2]
[313673377,1707570644367,-500.0,0.00022543,2]
[313673378,1707570644378,-500.0,0.00022543,2]
[313673379,1707570644388,-500.0,0.00022543,2]
[313673380,1707570644398,-980.55,0.00022543,2]
[313673381,1707570644408,-727.04,0.00022543,2]
[313673382,1707570644419,-500.0,0.00022543,2]
[313673383,1707570644430,-6435.96,0.00022543,2]
[313673384,1707570644440,-930.4,0.00022543,2]
[313673385,1707570644450,-500.0,0.00022543,2]
[313673386,1707570644460,-500.0,0.00022543,2]
[313673387,1707570644470,-500.0,0.00022543,2]
[313673388,1707570644480,-500.0,0.00022543,2]
[313673389,1707570644490,-260.05,0.00022543,2]
[313673390,1707570644500,-1663.9,0.00022543,2]
[313673391,1707570644510,-500.0,0.00022543,2]
[313673392,1707570644520,-500.0,0.00022543,2]
[313673393,1707570644530,-554.78,0.00022543,2]
[313673394,1707570644540,-500.0,0.00022543,2]
[313673395,1707570644550,-661.6,0.00022543,2]
[313673396,1707570644561,-1435.58,0.00022543,2]
[313673397,1707570644573,-500.0,0.00022543,2]
[313673398,1707570644584,-500.0,0.00022543,2]
[313673399,1707570644595,-500.0,0.00022543,2]
[313673400,1707570644608,-3525.61,0.00022543,2]
[313673401,1707570644620,-830.78,0.00022543,2]
[313673402,1707570644630,-1597.42,0.00022543,2]
[313673403,1707570644641,-639.25,0.00022543,2]
[313673404,1707570644651,-279.92108384,0.00022543,2]
[313673405,1707570644663,-175.61,0.00022543,2]
[313673406,1707570644674,-500.0,0.00022543,2]
[313673407,1707570644684,-500.0,0.00022543,2]
[313673408,1707570644695,-3870.17,0.00022543,2]
[313673409,1707570644705,-2763.83,0.00022543,2]
[313673410,1707570644715,-500.0,0.00022543,2]
[313673411,1707570644725,-500.0,0.00022543,2]
[313673412,1707570644735,-500.0,0.00022543,2]
[313673413,1707570644746,-1198.83,0.00022543,2]
[313673414,1707570644756,-500.0,0.00022543,2]
[313673415,1707570644766,-1821.72,0.00022543,2]
[313673416,1707570644775,-500.0,0.00022543,2]
[313673417,1707570644786,-2303.21,0.00022543,2]
[313673418,1707570644796,-209.91097028,0.00022543,2]
[313673419,1707570644806,-500.0,0.00022543,2]
[313673420,1707570644816,-500.0,0.00022543,2]
[313673421,1707570644825,-416.40038744,0.00022543,2]
[313673422,1707570644835,-3513.25,0.00022543,2]
[313673423,1707570644846,-500.0,0.00022543,2]
[313673424,1707570644857,-1169.74,0.00022543,2]
[313673425,1707570644868,-658.01,0.00022543,2]
[313673426,1707570644881,-500.0,0.00022544,2]
[313673427,1707570644891,-500.0,0.00022544,2]
[313673428,1707570644901,-500.0,0.00022544,2]
[313673429,1707570644912,-500.0,0.00022544,2]
[313673430,1707570644923,-500.0,0.00022544,2]
[313673431,1707570644933,-500.0,0.00022544,2]
[313673432,1707570644943,-500.0,0.00022544,2]
[313673433,1707570644954,-500.0,0.00022544,2]
[313673434,1707570644963,-500.0,0.00022544,2]
[313673435,1707570644973,-500.0,0.00022544,2]
[313673436,1707570644983,-550.26,0.00022544,2]
[313673437,1707570644993,-500.0,0.00022544,2]
[313673438,1707570645003,-500.0,0.00022544,2]
[313673439,1707570645014,-500.0,0.00022544,2]
[313673440,1707570645025,-519.25429033,0.00022544,2]
[313673441,1707570645036,-500.0,0.00022544,2]
[313673442,1707570645046,-500.0,0.00022544,2]
[313673443,1707570645056,-500.0,0.00022544,2]
[313673444,1707570645066,-500.0,0.00022544,2]
[313673445,1707570645076,-500.0,0.00022544,2]
[313673446,1707570645087,-500.0,0.00022544,2]
[313673447,1707570645097,-500.0,0.00022544,2]
[313673448,1707570645107,-500.0,0.00022544,2]
[313673449,1707570645117,-182.78984268,0.00022544,2]
[313673450,1707570645127,-500.0,0.00022544,2]
[313673451,1707570645137,-302.74098847,0.00022544,2]
[313673452,1707570645147,-500.0,0.00022544,2]
[313673453,1707570645157,-500.0,0.00022544,2]
[313673454,1707570645168,-500.0,0.00022544,2]
[313673455,1707570645178,-500.0,0.00022544,2]
[313673456,1707570645188,-521.15111804,0.00022544,2]
[313673457,1707570645198,-500.0,0.00022544,2]
[313673458,1707570645209,-500.0,0.00022544,2]
[313673459,1707570645219,-500.0,0.00022544,2]
[313673460,1707570645229,-500.0,0.00022544,2]
[313673461,1707570645240,-500.0,0.00022544,2]
[313673462,1707570645250,-500.0,0.00022544,2]
[313673463,1707570645261,-500.0,0.00022544,2]
[313673464,1707570645271,-556.632086,0.00022544,2]
[313673465,1707570645281,-500.0,0.00022544,2]
[313673466,1707570645291,-500.0,0.00022544,2]
[313673467,1707570645302,-500.0,0.00022544,2]
[313673468,1707570645312,-500.0,0.00022544,2]
[313673469,1707570645323,-500.0,0.00022544,2]
[313673470,1707570645333,-500.0,0.00022544,2]
[313673471,1707570645343,-334.44,0.00022544,2]
[313673472,1707570645354,-500.0,0.00022544,2]
[313673473,1707570645364,-500.0,0.00022544,2]
[313673474,1707570645375,-500.0,0.00022544,2]
[313673475,1707570645385,-500.0,0.00022544,2]
[313673476,1707570645395,-604.60200285,0.00022544,2]
[313673477,1707570645405,-499.45703501,0.00022544,2]
[313673478,1707570645415,-500.0,0.00022544,2]
[313673479,1707570645426,-500.0,0.00022544,2]
[313673480,1707570645436,-271.45732048,0.00022544,2]
[313673481,1707570645445,-500.0,0.00022544,2]
[313673482,1707570645455,-500.0,0.00022544,2]
[313673483,1707570645465,-500.0,0.00022544,2]
[313673484,1707570645475,-645.55,0.00022544,2]
[313673485,1707570645488,-500.0,0.00022544,2]
[313673486,1707570645498,-500.0,0.00022544,2]
[313673487,1707570645508,-500.0,0.00022544,2]
[313673488,1707570645518,-500.0,0.00022544,2]
[313673489,1707570645528,-500.0,0.00022544,2]
[313673490,1707570645538,-500.0,0.00022544,2]
[313673491,1707570645548,-500.0,0.00022544,2]
[313673492,1707570645558,-767.95,0.00022544,2]
[313673493,1707570645568,-500.0,0.00022544,2]
[313673495,1707570645578,-513.64040142,0.00022544,2]
[313673497,1707570645589,-500.0,0.00022544,2]
[313673499,1707570645600,-500.0,0.00022544,2]
[313673501,1707570645610,-500.0,0.00022544,2]
[313673503,1707570645620,-500.0,0.00022544,2]
[313673505,1707570645630,-501.06115608,0.00022544,2]
[313673506,1707570645641,-500.0,0.00022544,2]
[313673507,1707570645651,-500.0,0.00022544,2]
[313673508,1707570645661,-500.0,0.00022544,2]
[313673509,1707570645670,-500.0,0.00022544,2]
[313673510,1707570645681,-500.0,0.00022544,2]
[313673511,1707570645691,-500.0,0.00022544,2]
[313673512,1707570645701,-500.0,0.00022544,2]
[313673513,1707570645711,-500.0,0.00022544,2]
[313673514,1707570645721,-500.0,0.00022544,2]
[313673515,1707570645731,-500.0,0.00022544,2]
[313673516,1707570645742,-500.0,0.00022544,2]
[313673517,1707570645752,-500.0,0.00022544,2]
[313673518,1707570645762,-260.86266963,0.00022544,2]
[313673519,1707570645772,-500.0,0.00022544,2]
[313673520,1707570645783,-500.0,0.00022544,2]
[313673521,1707570645793,-500.0,0.00022544,2]
[313673522,1707570645804,-500.0,0.00022544,2]
[313673523,1707570645814,-500.0,0.00022544,2]
[313673524,1707570645825,-500.0,0.00022544,2]
[313673525,1707570645836,-500.0,0.00022544,2]
[313673526,1707570645848,-500.0,0.00022544,2]
[313673527,1707570645861,-500.0,0.00022544,2]
[313673528,1707570645872,-500.0,0.00022544,2]
[313673529,1707570645882,-500.0,0.00022544,2]
[313673530,1707570645893,-500.0,0.00022544,2]
[313673531,1707570645903,-503.84357752,0.00022544,2]
[313673532,1707570645914,-500.0,0.00022544,2]
[313673533,1707570645925,-500.0,0.00022544,2]
[313673534,1707570645936,-500.0,0.00022544,2]
[313673535,1707570645947,-591.14750221,0.00022544,2]
[313673536,1707570645957,-500.0,0.00022544,2]
[313673538,1707570645967,-500.0,0.00022544,2]
[313673540,1707570645978,-334.70358624,0.00022544,2]
[313673542,1707570645988,-560.38,0.00022544,2]
[313673543,1707570645998,-500.0,0.00022544,2]
[313673544,1707570646008,-500.0,0.00022544,2]
[313673545,1707570646018,-500.0,0.00022544,2]
[313673546,1707570646028,-500.0,0.00022544,2]
[313673547,1707570646038,-500.0,0.00022544,2]
[313673548,1707570646048,-500.0,0.00022544,2]
[313673549,1707570646058,-500.0,0.00022544,2]
[313673550,1707570646069,-556.47,0.00022544,2]
[313673551,1707570646079,-500.0,0.00022544,2]
[313673552,1707570646089,-500.0,0.00022544,2]
[313673553,1707570646099,-500.0,0.00022544,2]
[313673554,1707570646109,-500.0,0.00022544,2]
[313673555,1707570646120,-500.0,0.00022544,2]
[313673556,1707570646130,-500.0,0.00022544,2]
[313673557,1707570646140,-825.77,0.00022544,2]
[313673558,1707570646152,-500.0,0.00022544,2]
[313673559,1707570646163,-500.0,0.00022544,2]
[313673560,1707570646175,-500.0,0.00022544,2]
[313673561,1707570646185,-1864.47,0.00022544,2]
[313673562,1707570646196,-500.0,0.00022544,2]
[313673563,1707570646206,-500.0,0.00022544,2]
[313673564,1707570646217,-500.0,0.00022544,2]
[313673565,1707570646228,-500.0,0.00022544,2]
[313673566,1707570646238,-500.0,0.00022544,2]
[313673567,1707570646248,-500.0,0.00022544,2]
[313673568,1707570646258,-500.0,0.00022544,2]
[313673569,1707570646268,-500.0,0.00022544,2]
[313673570,1707570646279,-500.0,0.00022544,2]
[313673571,1707570646289,-500.0,0.00022544,2]
[313673572,1707570646299,-500.0,0.00022544,2]
[313673573,1707570646310,-500.0,0.00022544,2]
[313673574,1707570646320,-500.0,0.00022544,2]
[313673575,1707570646330,-500.0,0.00022544,2]
[313673576,1707570646340,-500.0,0.00022544,2]
[313673577,1707570646350,-500.0,0.00022544,2]
[313673578,1707570646360,-500.0,0.00022544,2]
[313673579,1707570646370,-500.0,0.00022544,2]
[313673580,1707570646380,-167.14953187,0.00022544,2]
[313673581,1707570646390,-500.0,0.00022544,2]
[313673582,1707570646400,-500.0,0.00022544,2]
[313673583,1707570646410,-500.0,0.00022544,2]
[313673584,1707570646420,-500.0,0.00022544,2]
[313673585,1707570646431,-500.0,0.00022544,2]
[313673586,1707570646442,-500.0,0.00022544,2]
[313673587,1707570646453,-500.0,0.00022544,2]
[313673588,1707570646463,-411.99204018,0.00022544,2]
[313673589,1707570646473,-500.0,0.00022544,2]
[313673590,1707570646484,-500.0,0.00022544,2]
[313673591,1707570646494,-500.0,0.00022544,5]
[313673592,1707570646505,-2214.65,0.00022544,2]
[313673593,1707570646756,-500.0,0.00022544,2]
[313673594,1707570646775,-500.0,0.00022544,2]
[313673595,1707570646784,-1729.41,0.00022544,2]
[313673596,1707570646793,-2536.94,0.00022544,2]
[313673597,1707570646803,-500.0,0.00022544,2]
[313673598,1707570646812,-1671.07,0.00022544,2]
[313673599,1707570646822,-500.0,0.00022544,2]
[313673600,1707570646831,-500.0,0.00022544,2]
[313673601,1707570646840,-769.16,0.00022544,2]
[313673602,1707570646853,-500.0,0.00022544,2]
[313673603,1707570646862,-754.01,0.00022544,2]
[313673604,1707570646872,-500.0,0.00022544,2]
[313673605,1707570646881,-501.66,0.00022544,2]
[313673606,1707570646890,-500.0,0.00022544,2]
[313673607,1707570646901,-500.0,0.00022544,2]
[313673608,1707570646910,-500.0,0.00022544,2]
[313673609,1707570646919,-1639.61,0.00022544,2]
[313673610,1707570646930,-740.98,0.00022544,2]
[313673611,1707570646939,-500.0,0.00022544,2]
[313673612,1707570646949,-173.09278347,0.00022544,2]
[313673613,1707570646958,-500.0,0.00022544,2]
[313673614,1707570646968,-2010.59,0.00022544,2]
[313673615,1707570646978,-500.0,0.00022544,2]
[313673616,1707570646987,-500.0,0.00022544,2]
[313673617,1707570646998,-500.0,0.00022544,2]
[313673618,1707570647007,-500.0,0.00022544,2]
[313673619,1707570647016,-500.0,0.00022544,2]
[313673620,1707570647026,-541.97,0.00022544,2]
[313673621,1707570647035,-500.0,0.00022544,2]
[313673622,1707570647045,-705.48,0.00022544,2]
[313673623,1707570647055,-666.9,0.00022544,2]
[313673624,1707570647064,-722.64,0.00022544,2]
[313673625,1707570647075,-984.67,0.00022544,2]
[313673626,1707570647085,-500.0,0.00022544,2]
[313673627,1707570647094,-2548.77,0.00022544,2]
[313673628,1707570647103,-12613.79,0.00022544,2]
[313673629,1707570647113,-500.0,0.00022544,2]
[313673630,1707570647123,-9135.85,0.00022544,2]
[313673631,1707570647131,-1613.09,0.00022544,2]
[313673632,1707570647141,-1079.33,0.00022544,2]
[313673633,1707570647151,-671.18,0.00022544,2]
[313673634,1707570647160,-2651.71,0.00022544,2]
[313673635,1707570647170,-1848.47,0.00022544,2]
[313673636,1707570647179,-1899.17,0.00022544,2]
[313673637,1707570647189,-534.85,0.00022544,2]
[313673638,1707570647199,-500.0,0.00022544,2]
[313673639,1707570647208,-500.0,0.00022544,2]
[313673640,1707570647218,-2363.09,0.00022544,2]
[313673641,1707570647228,-1438.7,0.00022544,2]
[313673642,1707570647237,-9450.7,0.00022544,2]
[313673643,1707570647246,-500.0,0.00022544,2]
[313673644,1707570647256,-1354.52,0.00022544,2]
[313673645,1707570647265,-651.08,0.00022544,2]
[313673646,1707570647276,-9990.98,0.00022544,2]
[313673647,1707570647286,-150.01,0.00022546,2]
[313673648,1707570647295,-3312.93754323,0.00022546,2]
[313673649,1707570647305,-499.99,0.00022556,2]
[313673650,1707570647315,-1035.18,0.00022556,2]
[313673651,1707570647323,-540.28513236,0.00022659,2]
[313673652,1707570647333,-160.60828373,0.00022663,2]
[313673653,1707570647343,-951.0,0.00022681,2]
[313673654,1707570647353,-453.0,0.00022681,2]
[313673655,1707570647363,-861.0,0.00022681,2]
[313673656,1707570647373,-2831.0,0.00022681,2]
[313673657,1707570647382,-1858.0,0.00022681,2]
[313673658,1707570647391,-328.293,0.00022681,2]
[313673659,1707570647401,-1232.0,0.00022681,2]
[313673660,1707570647412,-531.0,0.00022681,2]
[313673661,1707570647424,-1253.0,0.00022681,2]
[313673662,1707570647433,-707.0,0.00022681,2]
[313673663,1707570647442,-1946.0,0.00022681,2]
[313673664,1707570647451,-1003.0,0.00022681,2]
[313673665,1707570647460,-607.787,0.00022681,2]
[313673666,1707570647470,-467.227,0.00022681,2]
[313673667,1707570647479,-237.0,0.00022681,2]
[313673668,1707570647488,-1138.0,0.00022681,2]
[313673669,1707570647497,-858.0,0.00022681,2]
[313673670,1707570647506,-152.583,0.00022681,2]
[313673671,1707570647516,-321.0,0.00022681,2]
[313673672,1707570647525,-2519.0,0.00022681,2]
[313673673,1707570647534,-343.0,0.00022681,2]
[313673674,1707570647543,-3775.0,0.000227,2]
[313673675,1707570647553,-349.0,0.000227,2]
[313673676,1707570647562,-1000.0,0.000227,2]
[313673677,1707570647571,-4539.48195515,0.00022717,2]
[313673678,1707570647580,-171.39713619,0.00022718,2]
[313673679,1707570647590,-4539.48195515,0.00022742,2]
[313673680,1707570647599,-7405.0,0.00022759,2]
[313673681,1707570647608,-2922.0,0.00022759,2]
[313673682,1707570647618,-4203.0,0.00022759,2]
[313673683,1707570647627,-5618.0,0.00022759,2]
[313673684,1707570647636,-8152.0,0.00022759,2]
[313673685,1707570647645,-2341.912,0.00022759,2]
[313673686,1707570647655,-19818.0,0.00022759,2]
[313673687,1707570647664,-24744.81933304,0.00022759,2]
[313673688,1707570647967,-1648.37425309,0.00022759,2]
[313673689,1707570647990,-2093.75581314,0.00022759,2]
[313673690,1707570648002,-577.35633293,0.00022759,2]
[313673691,1707570648546,-500.0,0.00022543,2]
[313673692,1707570648555,-21.42514134,0.00022759,2]
[313673693,1707570648567,-2805.18078743,0.00022759,2]
[313673695,1707570787655,156.80686186,0.00020482,2]
[313673696,1707570795941,923.14109459,0.00020482,2]
[313673697,1707570845715,271.73535301,0.00020482,2]
[313673698,1707570863732,200.29020129,0.00020482,2]
[313673699,1707570894310,250.0,0.000218,2]
[313673700,1707571019619,840.0,0.00021804,2]
[313673701,1707571055699,154.27,0.0001989,2]
[313673702,1707571059311,268.83625673,0.00022,2]
[313673703,1707571064929,166.62,0.00021808,2]
[313673704,1707571225128,811.04366643,0.0002244,2]
[313673705,1707571248722,171.98847574,0.00021808,2]
[313673706,1707571252987,155.0,0.00021808,2]
[313673707,1707571270978,155.0,0.0002244,2]
[313673708,1707571282015,1192.92662956,0.00020284,2]
[313673709,1707571306008,1192.92662956,0.00020284,2]
[313673710,1707571306505,150.0,0.00022482,2]
[313673711,1707571322013,1192.92662956,0.00020284,2]
[313673712,1707571335484,166.62,0.0002245,2]
[313673713,1707571349639,160.60828373,0.0002244,2]
[313673714,1707571365772,250.0,0.00021793,2]
[313673715,1707571379017,3573.92552262,0.000225,2]
[313673716,1707571474139,200.0,0.00021757,2]
[313673717,1707571474899,328.0,0.00021757,2]
[313673718,1707571508159,1827.49535054,0.00022313,2]
[313673719,1707571509588,162.47006204,0.00020284,2]
[313673720,1707571514351,182.45118698,0.000225,2]
[313673721,1707571518741,12057.96667706,0.000225,2]
[313673722,1707571542879,2121.99120584,0.000225,2]
[313673723,1707571552705,195.04,0.00021739,2]
[313673724,1707571612031,156.04,0.00019822,2]
[313673725,1707571612248,156.04,0.00022211,2]
[313673726,1707571619140,238.51969202,0.00021739,2]
[313673727,1707571627846,170.63189272,0.00021739,2]
[313673731,1707571659516,1933.645559,0.00022409,2]
[313673732,1707571698339,176.53,0.00021754,2]
[313673733,1707571701885,4053.42,0.00021754,2]
[313673734,1707571705453,354.22,0.00022,2]
[313673735,1707571717590,500.0,0.00021749,2]
[313673736,1707571718616,164.96,0.00021749,2]
[313673741,1707571771873,3010.29,0.0002176,2]
[313673743,1707571786780,157.54,0.00021952,2]
[313673744,1707571787006,157.54,0.00022334,2]
[313673752,1707571828009,-1050.57958058,0.00022514,2]
[313673753,1707571830016,250.0,0.00021759,2]
[313673774,1707571831813,-1180.36287393,0.00022516,2]
[313673775,1707571831822,-150.0,0.00022539,2]
[313673776,1707571831832,-702.18237413,0.0002254,3]
[313673777,1707571831841,-6152.07450241,0.0002254,2]
[313673778,1707571831853,-23605.5,0.0002254,2]
[313673779,1707571831864,-26688.51283752,0.0002254,2]
[313673780,1707571831875,-6657.06776078,0.0002254,2]
[313673781,1707571831916,-2230.9895942,0.0002254,2]
[313673782,1707571831937,-858.16390953,0.0002254,2]
[313673783,1707571831973,-4372.24196229,0.0002254,2]
[313673784,1707571831993,-129435.44943327,0.0002254,2]
[313673785,1707571832002,-500.0,0.0002254,2]
[313673786,1707571832011,-531.66,0.0002254,2]
[313673787,1707571832020,-472.23362773,0.0002254,2]
[313673788,1707571832029,-796.17,0.0002254,2]
[313673789,1707571832039,-500.0,0.0002254,2]
[313673791,1707571832048,-500.0,0.0002254,2]
[313673793,1707571832057,-500.0,0.0002254,2]
[313673795,1707571832066,-500.0,0.0002254,2]
[313673797,1707571832075,-4646.48697645,0.0002254,2]
[313673799,1707571832084,-500.0,0.0002254,2]
[313673801,1707571832093,-500.0,0.0002254,2]
[313673803,1707571832102,-543.2,0.0002254,2]
[313673805,1707571832112,-635.2,0.0002254,2]
[313673807,1707571832121,-500.0,0.0002254,2]
[313673809,1707571832131,-1786.79,0.0002254,2]
[313673811,1707571832140,-500.0,0.0002254,2]
[313673813,1707571832149,-500.0,0.0002254,2]
[313673815,1707571832158,-500.0,0.0002254,2]
[313673816,1707571832167,-500.0,0.0002254,2]
[313673818,1707571832176,-500.0,0.0002254,2]
[313673820,1707571832185,-500.0,0.0002254,2]
[313673822,1707571832194,-500.0,0.0002254,2]
[313673824,1707571832208,-500.0,0.0002254,2]
[313673826,1707571832217,-500.0,0.0002254,2]
[313673828,1707571832226,-500.0,0.0002254,2]
[313673830,1707571832236,-500.0,0.0002254,2]
[313673832,1707571832246,-500.0,0.0002254,2]
[313673834,1707571832255,-500.0,0.0002254,2]
[313673836,1707571832264,-641.55005941,0.0002254,2]
[313673838,1707571832273,-500.0,0.0002254,2]
[313673840,1707571832283,-500.0,0.0002254,2]
[313673841,1707571832292,-500.0,0.0002254,2]
[313673842,1707571832301,-710.11,0.0002254,2]
[313673843,1707571832309,-500.0,0.0002254,2]
[313673844,1707571832318,-1926.81,0.0002254,2]
[313673845,1707571832327,-500.0,0.0002254,2]
[313673846,1707571832336,-500.0,0.0002254,2]
[313673847,1707571832346,-500.0,0.0002254,2]
[313673848,1707571832355,-8755.19,0.0002254,2]
[313673849,1707571832364,-1860.40994878,0.00022541,2]
[313673850,1707571832373,-10572.80116167,0.00022541,2]
[313673851,1707571832383,-500.0,0.00022541,2]
[313673852,1707571832392,-500.0,0.00022541,2]
[313673853,1707571832401,-1962.25,0.00022541,2]
[313673854,1707571832410,-13083.52,0.00022541,2]
[313673855,1707571832419,-500.0,0.00022541,2]
[313673856,1707571832429,-500.0,0.00022541,2]
[313673857,1707571832438,-500.0,0.00022541,2]
[313673858,1707571832447,-500.0,0.00022541,2]
[313673859,1707571832457,-1232.62,0.00022541,2]
[313673860,1707571832466,-500.0,0.00022541,2]
[313673861,1707571832475,-500.0,0.00022541,2]
[313673862,1707571832486,-4939.59,0.00022541,2]
[313673863,1707571832495,-500.0,0.00022541,2]
[313673864,1707571832504,-500.0,0.00022541,2]
[313673865,1707571832514,-500.0,0.00022541,2]
[313673866,1707571832523,-1188.25,0.00022541,2]
[313673867,1707571832532,-1663.74,0.00022541,2]
[313673868,1707571832541,-500.0,0.00022541,2]
[313673869,1707571832551,-500.0,0.00022541,2]
[313673870,1707571832561,-599.85,0.00022541,2]
[313673871,1707571832570,-2354.24,0.00022541,2]
[313673872,1707571832580,-500.0,0.00022541,2]
[313673873,1707571832589,-500.0,0.00022541,2]
[313673874,1707571832599,-500.0,0.00022541,2]
[313673875,1707571832609,-500.0,0.00022541,2]
[313673876,1707571832618,-4807.79,0.00022541,2]
[313673877,1707571832627,-804.22,0.00022541,2]
[313673878,1707571832637,-685.22,0.00022541,2]
[313673879,1707571832646,-500.0,0.00022541,2]
[313673880,1707571832655,-500.0,0.00022541,2]
[313673881,1707571832664,-500.0,0.00022541,2]
[313673882,1707571832673,-1425.09,0.00022541,2]
[313673883,1707571832682,-4573.57,0.00022541,2]
[313673884,1707571832691,-500.0,0.00022541,2]
[313673885,1707571832700,-524.03,0.00022541,2]
[313673886,1707571832709,-500.0,0.00022541,2]
[313673887,1707571832719,-500.0,0.00022541,2]
[313673888,1707571832728,-500.0,0.00022541,2]
[313673889,1707571832737,-500.0,0.00022541,2]
[313673890,1707571832746,-634.03,0.00022541,2]
[313673891,1707571832755,-2035.53,0.00022541,2]
[313673892,1707571832765,-500.0,0.00022541,2]
[313673893,1707571832774,-500.0,0.00022541,5]
[313673894,1707571832783,-500.0,0.00022541,2]
[313673895,1707571832791,-2199.71,0.00022541,2]
[313673896,1707571832800,-1530.86,0.00022541,2]
[313673897,1707571832809,-4500.27,0.00022541,2]
[313673898,1707571832818,-2648.67,0.00022541,2]
[313673899,1707571832827,-698.22,0.00022541,2]
[313673900,1707571832837,-417.09510476,0.00022541,2]
[313673901,1707571832846,-500.0,0.00022541,2]
[313673902,1707571832855,-500.0,0.00022541,2]
[313673903,1707571832864,-500.0,0.00022542,2]
[313673904,1707571832873,-500.0,0.00022542,2]
[313673905,1707571832882,-500.0,0.00022542,7]
[313673906,1707571832891,-500.0,0.00022542,2]
[313673907,1707571832900,-500.0,0.00022542,2]
[313673908,1707571832909,-500.0,0.00022542,2]
[313673909,1707571832918,-500.0,0.00022542,2]
[313673910,1707571832927,-500.0,0.00022542,2]
[313673911,1707571832936,-150.0,0.00022542,2]
[313673912,1707571832946,-500.0,0.00022542,2]
[313673913,1707571832955,-500.0,0.00022542,2]
[313673914,1707571832965,-500.0,0.00022542,2]
[313673915,1707571832974,-500.0,0.00022542,2]
[313673916,1707571832983,-513.92,0.00022542,2]
[313673917,1707571832992,-500.0,0.00022542,2]
[313673918,1707571833001,-500.0,0.00022542,2]